fUST/lending_fUST_20250210
["ID","MTS","AMOUNT","RATE_DAILY","PERIOD"]
[352488097,1739137559710,-500.0,0.00010958,2]
[352488098,1739137559733,-500.0,0.00010958,2]
[352488099,1739137559755,-500.0,0.00010958,2]
[352488100,1739137559779,-500.0,0.00010958,2]
[352488101,1739137559802,-500.0,0.00010958,2]
[352488102,1739137559824,-1517.82,0.00010958,2]
[352488103,1739137559846,-500.0,0.00010958,2]
[352488104,1739137559868,-437.9165222,0.00010958,2]
[352488105,1739137559890,-593.37,0.00010958,2]
[352488106,1739137559912,-500.0,0.00010958,2]
[352488107,1739137559934,-500.0,0.00010958,2]
[352488108,1739137560064,-641.37,0.00010958,2]
[352488109,1739137560090,-1129.5,0.00010958,2]
[352488110,1739137560113,-500.0,0.00010958,2]
[352488111,1739137560137,-500.0,0.00010958,2]
[352488112,1739137560160,-500.0,0.00010958,2]
[352488113,1739137560185,-500.0,0.00010958,2]
[352488114,1739137560211,-500.0,0.00010958,2]
[352488115,1739137560236,-327.86889593,0.00010958,2]
[352488116,1739137560264,-500.0,0.00010958,2]
[352488117,1739137560291,-500.0,0.00010958,2]
[352488118,1739137560314,-500.0,0.00010958,2]
[352488119,1739137560338,-500.0,0.00010958,2]
[352488120,1739137560361,-500.0,0.00010958,2]
[352488121,1739137560386,-500.0,0.00010958,2]
[352488122,1739137560410,-500.0,0.00010958,2]
[352488123,1739137560434,-500.0,0.00010958,2]
[352488124,1739137560457,-500.0,0.00010958,2]
[352488125,1739137560480,-500.0,0.00010958,2]
[352488126,1739137560503,-537.89956918,0.00010958,2]
[352488127,1739137560530,-500.0,0.00010958,2]
[352488128,1739137560554,-500.0,0.00010958,2]
[352488129,1739137560578,-500.0,0.00010958,2]
[352488130,1739137560603,-500.0,0.00010958,2]
[352488131,1739137560626,-500.0,0.00010958,2]
[352488132,1739137560650,-500.0,0.00010958,2]
[352488133,1739137560673,-500.0,0.00010958,2]
[352488134,1739137560699,-500.0,0.00010958,2]
[352488135,1739137560722,-500.0,0.00010958,2]
[352488136,1739137560745,-500.0,0.00010958,2]
[352488137,1739137560771,-500.0,0.00010958,2]
[352488138,1739137560793,-500.0,0.00010958,2]
[352488139,1739137560815,-500.0,0.00010958,2]
[352488140,1739137560837,-562.55,0.00010958,2]
[352488141,1739137560859,-500.0,0.00010958,2]
[352488142,1739137560880,-500.0,0.00010958,2]
[352488143,1739137560902,-500.0,0.00010958,2]
[352488144,1739137560927,-500.0,0.00010958,2]
[352488145,1739137560951,-500.0,0.00010958,2]
[352488146,1739137560973,-500.0,0.00010958,2]
[352488147,1739137560995,-500.0,0.00010958,2]
[352488148,1739137561021,-500.0,0.00010958,2]
[352488149,1739137561046,-500.0,0.00010958,2]
[352488150,1739137561067,-500.0,0.00010958,2]
[352488151,1739137561089,-500.0,0.00010958,2]
[352488152,1739137561112,-500.0,0.00010958,2]
[352488153,1739137561135,-500.0,0.00010958,2]
[352488154,1739137561157,-500.0,0.00010958,2]
[352488155,1739137561178,-500.0,0.00010958,2]
[352488156,1739137561200,-500.0,0.00010958,2]
[352488157,1739137561221,-255.12695831,0.00010958,2]
[352488158,1739137561242,-500.0,0.00010958,2]
[352488159,1739137561267,-500.0,0.00010958,2]
[352488160,1739137561289,-595.78997512,0.00010958,2]
[352488161,1739137561311,-500.0,0.00010958,2]
[352488162,1739137561333,-500.0,0.00010958,2]
[352488163,1739137561354,-507.40462758,0.00010958,2]
[352488164,1739137561376,-500.0,0.00010958,2]
[352488165,1739137561397,-500.0,0.00010958,2]
[352488166,1739137561419,-500.0,0.00010958,2]
[352488167,1739137561441,-500.0,0.00010958,2]
[352488168,1739137561463,-500.0,0.00010958,2]
[352488169,1739137561487,-233.53211729,0.00010958,2]
[352488170,1739137561511,-500.0,0.00010958,2]
[352488171,1739137561539,-500.0,0.00010958,2]
[352488172,1739137561561,-738.43,0.00010958,2]
[352488173,1739137561583,-500.0,0.00010958,2]
[352488174,1739137561605,-500.0,0.00010958,2]
[352488175,1739137561626,-500.0,0.00010958,2]
[352488176,1739137561647,-500.0,0.00010958,2]
[352488177,1739137561669,-500.0,0.00010958,2]
[352488178,1739137561691,-500.0,0.00010958,2]
[352488179,1739137561715,-500.0,0.00010958,2]
[352488180,1739137561737,-517.69,0.00010958,2]
[352488181,1739137561758,-503.40739785,0.00010958,2]
[352488182,1739137561782,-500.0,0.00010958,2]
[352488183,1739137561803,-500.0,0.00010958,2]
[352488184,1739137561825,-500.0,0.00010958,2]
[352488185,1739137561847,-500.0,0.00010958,2]
[352488186,1739137561868,-501.40234202,0.00010958,2]
[352488187,1739137561890,-500.0,0.00010958,2]
[352488188,1739137561912,-500.0,0.00010958,2]
[352488189,1739137561933,-500.0,0.00010958,2]
[352488190,1739137561954,-500.0,0.00010958,2]
[352488191,1739137561975,-500.0,0.00010958,2]
[352488192,1739137561999,-500.0,0.00010958,2]
[352488193,1739137562023,-500.0,0.00010958,2]
[352488194,1739137562047,-500.0,0.00010958,2]
[352488195,1739137562069,-500.0,0.00010958,2]
[352488196,1739137562093,-500.0,0.00010958,2]
[352488197,1739137562115,-500.0,0.00010958,2]
[352488198,1739137562139,-500.0,0.00010958,2]
[352488199,1739137562161,-500.0,0.00010958,2]
[352488200,1739137562183,-524.5,0.00010958,2]
[352488201,1739137562204,-1290.86,0.00010958,2]
[352488202,1739137562226,-500.0,0.00010958,2]
[352488203,1739137562248,-500.0,0.00010958,2]
[352488204,1739137562274,-500.0,0.00010958,2]
[352488205,1739137562296,-597.3,0.00010958,2]
[352488206,1739137562319,-500.0,0.00010958,2]
[352488207,1739137562340,-500.0,0.00010958,2]
[352488208,1739137562364,-500.0,0.00010958,2]
[352488209,1739137562385,-500.0,0.00010958,2]
[352488210,1739137562409,-503.93,0.00010958,2]
[352488211,1739137562431,-500.0,0.00010958,2]
[352488212,1739137562454,-616.75,0.00010958,2]
[352488213,1739137562478,-707.63,0.00010958,2]
[352488214,1739137562500,-500.0,0.00010958,2]
[352488215,1739137562527,-500.0,0.00010958,2]
[352488216,1739137562549,-500.0,0.00010958,2]
[352488217,1739137562572,-500.0,0.00010958,2]
[352488218,1739137562712,-500.0,0.00010958,2]
[352488219,1739137562735,-500.0,0.00010958,2]
[352488220,1739137562759,-500.0,0.00010958,2]
[352488221,1739137562784,-500.0,0.00010958,2]
[352488222,1739137562806,-500.0,0.00010958,2]
[352488223,1739137562828,-500.0,0.00010958,2]
[352488224,1739137562849,-500.0,0.00010958,2]
[352488225,1739137562870,-500.0,0.00010958,2]
[352488226,1739137562892,-500.0,0.00010958,2]
[352488227,1739137562915,-500.0,0.00010958,2]
[352488228,1739137562936,-500.0,0.00010958,2]
[352488229,1739137562958,-500.0,0.00010958,2]
[352488230,1739137562979,-1103.48,0.00010958,2]
[352488231,1739137563004,-500.0,0.00010958,2]
[352488232,1739137563035,-500.0,0.00010958,2]
[352488233,1739137563061,-876.18,0.00010958,2]
[352488234,1739137563084,-500.0,0.00010958,2]
[352488235,1739137563106,-155.23293594,0.00010958,2]
[352488236,1739137563130,-500.0,0.00010958,2]
[352488237,1739137563153,-724.02,0.00010958,2]
[352488238,1739137563176,-500.0,0.00010958,2]
[352488239,1739137563200,-500.0,0.00010958,2]
[352488240,1739137563225,-500.0,0.00010958,2]
[352488241,1739137563251,-500.0,0.00010958,2]
[352488242,1739137563281,-500.0,0.00010958,2]
[352488243,1739137563306,-500.0,0.00010958,2]
[352488244,1739137563330,-500.0,0.00010958,2]
[352488245,1739137563354,-500.0,0.00010958,2]
[352488246,1739137563378,-500.0,0.00010958,2]
[352488247,1739137563403,-500.0,0.00010958,2]
[352488248,1739137563428,-824.2,0.00010958,2]
[352488249,1739137563453,-500.0,0.00010958,2]
[352488250,1739137563477,-314.68494082,0.00010958,2]
[352488251,1739137563501,-500.0,0.00010958,2]
[352488252,1739137563532,-500.0,0.00010958,2]
[352488253,1739137563559,-500.0,0.00010958,2]
[352488254,1739137563584,-500.0,0.00010958,2]
[352488255,1739137563610,-500.0,0.00010958,2]
[352488256,1739137563634,-824.85,0.00010958,2]
[352488257,1739137563658,-500.0,0.00010958,2]
[352488258,1739137563680,-500.0,0.00010958,2]
[352488259,1739137563704,-500.0,0.00010958,2]
[352488260,1739137563726,-500.0,0.00010958,2]
[352488261,1739137563749,-500.0,0.00010958,2]
[352488262,1739137563775,-802.34,0.00010958,2]
[352488263,1739137563797,-500.0,0.00010958,2]
[352488264,1739137563822,-10355.4487852,0.00010958,2]
[352488265,1739137564138,-13356.8712148,0.00010958,2]
[352488266,1739137564161,-500.0,0.00010958,2]
[352488267,1739137564184,-500.0,0.00010958,2]
[352488268,1739137564207,-1911.35,0.00010958,2]
[352488269,1739137564230,-500.0,0.00010958,2]
[352488270,1739137564253,-500.0,0.00010958,2]
[352488271,1739137564281,-633.47,0.00010958,2]
[352488272,1739137564304,-660.79,0.00010958,2]
[352488273,1739137564326,-500.0,0.00010958,2]
[352488274,1739137564350,-500.0,0.00010958,2]
[352488275,1739137564373,-501.70580386,0.00010958,2]
[352488276,1739137564396,-500.0,0.00010958,2]
[352488277,1739137564418,-500.0,0.00010958,2]
[352488278,1739137564441,-5088.15,0.00010958,2]
[352488279,1739137564462,-500.0,0.00010958,2]
[352488280,1739137564484,-500.0,0.00010958,2]
[352488281,1739137564507,-1611.54,0.00010958,2]
[352488282,1739137564535,-500.0,0.00010958,2]
[352488283,1739137564556,-500.0,0.00010958,2]
[352488284,1739137564577,-500.0,0.00010958,2]
[352488285,1739137564599,-1548.94,0.00010958,2]
[352488286,1739137564621,-500.0,0.00010958,2]
[352488287,1739137564644,-500.0,0.00010958,2]
[352488288,1739137564669,-2390.89,0.00010958,2]
[352488289,1739137564692,-1526.67,0.00010958,2]
[352488290,1739137564716,-1271.62,0.00010958,2]
[352488291,1739137564740,-500.0,0.00010958,2]
[352488292,1739137564762,-500.0,0.00010958,2]
[352488293,1739137564788,-500.0,0.00010958,2]
[352488294,1739137564944,-500.0,0.00010958,2]
[352488295,1739137564967,-1037.54,0.00010958,2]
[352488296,1739137564990,-1491.1,0.00010958,2]
[352488297,1739137565013,-1693.55,0.00010958,2]
[352488298,1739137565043,-500.0,0.00010958,2]
[352488299,1739137565066,-500.0,0.00010958,2]
[352488300,1739137565088,-500.0,0.00010958,2]
[352488301,1739137565111,-500.0,0.00010958,2]
[352488302,1739137565132,-500.0,0.00010958,2]
[352488303,1739137565154,-45845.24,0.00010958,2]
[352488304,1739137565176,-605.08,0.00010958,2]
[352488305,1739137565199,-7601.55,0.00010958,2]
[352488306,1739137565221,-500.0,0.00010958,2]
[352488307,1739137565243,-553.48039346,0.00010958,2]
[352488308,1739137565265,-500.0,0.00010958,2]
[352488309,1739137565291,-500.0,0.00010958,2]
[352488310,1739137565314,-500.0,0.00010958,2]
[352488311,1739137565336,-960.58,0.00010958,2]
[352488312,1739137565359,-2442.82,0.00010958,2]
[352488313,1739137565380,-500.0,0.00010958,2]
[352488314,1739137565401,-500.0,0.00010958,2]
[352488315,1739137565423,-500.0,0.00010958,2]
[352488316,1739137565445,-500.0,0.00010958,2]
[352488317,1739137565467,-500.0,0.00010958,2]
[352488318,1739137565489,-335.68103438,0.00010958,2]
[352488319,1739137565512,-500.0,0.00010958,2]
[352488320,1739137565537,-2011.52,0.00010958,2]
[352488321,1739137565558,-500.0,0.00010958,2]
[352488322,1739137565581,-634.96,0.00010958,2]
[352488323,1739137565603,-1401.14,0.00010958,2]
[352488324,1739137565626,-500.0,0.00010958,2]
[352488325,1739137565648,-551.03,0.00010958,2]
[352488326,1739137565668,-500.0,0.00010958,2]
[352488327,1739137565690,-500.0,0.00010958,2]
[352488328,1739137565712,-500.0,0.00010958,2]
[352488329,1739137565735,-500.0,0.00010958,2]
[352488330,1739137565759,-500.0,0.00010958,2]
[352488331,1739137565783,-500.0,0.00010958,2]
[352488332,1739137565804,-719.11,0.00010958,2]
[352488333,1739137565825,-774.85,0.00010958,2]
[352488334,1739137565846,-500.0,0.00010958,2]
[352488335,1739137565867,-500.0,0.00010958,2]
[352488336,1739137565889,-500.0,0.00010958,2]
[352488337,1739137565911,-255.63881355,0.00010958,2]
[352488338,1739137565933,-500.0,0.00010958,2]
[352488339,1739137565957,-500.0,0.00010958,2]
[352488340,1739137565979,-500.0,0.00010958,2]
[352488341,1739137566007,-500.0,0.00010958,2]
[352488342,1739137566035,-500.0,0.00010958,2]
[352488343,1739137566058,-506.16521075,0.00010958,2]
[352488344,1739137566080,-500.0,0.00010958,2]
[352488345,1739137566102,-501.82839792,0.00010958,2]
[352488346,1739137566124,-500.0,0.00010958,2]
[352488347,1739137566147,-500.0,0.00010958,2]
[352488348,1739137566168,-500.0,0.00010958,2]
[352488349,1739137566188,-500.0,0.00010958,2]
[352488350,1739137566210,-500.0,0.00010958,2]
[352488351,1739137566232,-3803.23,0.00010958,2]
[352488352,1739137566255,-12348.21,0.00010958,2]
[352488353,1739137566280,-1332.36,0.00010958,2]
[352488354,1739137566301,-500.0,0.00010958,2]
[352488355,1739137566322,-784.54,0.00010958,2]
[352488356,1739137566343,-780.43,0.00010958,2]
[352488357,1739137566365,-884.06,0.00010958,2]
[352488358,1739137566385,-500.0,0.00010958,2]
[352488359,1739137566406,-500.0,0.00010958,2]
[352488360,1739137566428,-500.0,0.00010958,2]
[352488361,1739137566451,-2757.52723928,0.00010958,2]
[352488362,1739137619082,-1200.0,0.00010068,2]
[352488363,1739137619106,-5000.0,0.0001074,2]
[352488364,1739137619128,-3531.84061186,0.00010848,2]
[352488365,1739137619151,-2214.68276072,0.00010958,2]
[352488366,1739137619172,-500.0,0.00010958,2]
[352488367,1739137619196,-1955.48990042,0.00010958,2]
[352488368,1739137629093,-5000.0,0.00010848,2]
[352488369,1739137629117,-300.0,0.00010957,2]
[352488370,1739137629141,-14618.17009958,0.00010958,2]
[352488371,1739137629165,-1933.38,0.00010958,2]
[352488372,1739137629189,-500.0,0.00010958,2]
[352488373,1739137629211,-1472.41,0.00010958,2]
[352488374,1739137629233,-500.0,0.00010958,2]
[352488375,1739137629255,-2624.27,0.00010958,2]
[352488376,1739137629277,-770.2,0.00010958,2]
[352488377,1739137629299,-609.23,0.00010958,2]
[352488378,1739137629324,-500.0,0.00010958,2]
[352488379,1739137629345,-500.0,0.00010958,2]
[352488380,1739137629368,-500.0,0.00010958,2]
[352488381,1739137629390,-1263.38,0.00010958,2]
[352488382,1739137629413,-888.73,0.00010958,2]
[352488383,1739137629437,-5020.2,0.00010958,2]
[352488384,1739137629459,-500.0,0.00010958,2]
[352488385,1739137629482,-500.0,0.00010958,2]
[352488386,1739137629504,-573.73,0.00010958,2]
[352488387,1739137629527,-500.0,0.00010958,2]
[352488388,1739137629549,-500.0,0.00010958,2]
[352488389,1739137629574,-500.0,0.00010958,2]
[352488390,1739137629595,-500.0,0.00010958,2]
[352488391,1739137629618,-500.0,0.00010958,2]
[352488392,1739137629639,-500.0,0.00010958,2]
[352488393,1739137629660,-500.0,0.00010958,2]
[352488394,1739137629682,-500.0,0.00010958,2]
[352488395,1739137629704,-500.0,0.00010958,2]
[352488396,1739137629724,-500.0,0.00010958,2]
[352488397,1739137629746,-500.0,0.00010958,2]
[352488398,1739137629769,-500.0,0.00010958,2]
[352488399,1739137629791,-500.0,0.00010958,2]
[352488400,1739137629818,-1325.08,0.00010958,2]
[352488401,1739137629841,-703.17,0.00010958,2]
[352488402,1739137629862,-500.0,0.00010958,2]
[352488403,1739137629883,-500.0,0.00010958,2]
[352488404,1739137629906,-1380.66,0.00010958,2]
[352488405,1739137630030,-500.0,0.00010958,2]
[352488406,1739137630057,-5323.23,0.00010958,2]
[352488407,1739137630087,-788.28,0.00010958,2]
[352488408,1739137630113,-500.0,0.00010958,2]
[352488409,1739137630137,-500.0,0.00010958,2]
[352488410,1739137630160,-235.26877041,0.00010958,2]
[352488411,1739137630182,-280.87241821,0.00010958,2]
[352488412,1739137630204,-500.0,0.00010958,2]
[352488413,1739137630226,-567.03,0.00010958,2]
[352488414,1739137630249,-500.0,0.00010958,2]
[352488415,1739137630271,-4069.2,0.00010958,2]
[352488416,1739137630293,-500.0,0.00010958,2]
[352488417,1739137630317,-500.0,0.00010958,2]
[352488418,1739137630339,-500.0,0.00010958,2]
[352488419,1739137630362,-500.0,0.00010958,2]
[352488420,1739137630384,-500.0,0.00010958,2]
[352488421,1739137630407,-500.0,0.00010958,2]
[352488422,1739137630429,-500.0,0.00010958,2]
[352488423,1739137630451,-1757.29,0.00010958,2]
[352488424,1739137630475,-500.0,0.00010958,2]
[352488425,1739137630497,-598.05983111,0.00010958,2]
[352488426,1739137630519,-500.0,0.00010958,2]
[352488427,1739137630541,-515.50492636,0.00010958,2]
[352488428,1739137630567,-5792.99,0.00010958,2]
[352488429,1739137630589,-500.0,0.00010958,2]
[352488430,1739137630612,-500.0,0.00010958,2]
[352488431,1739137630635,-500.0,0.00010958,2]
[352488432,1739137630657,-500.0,0.00010958,2]
[352488433,1739137630681,-5298.98,0.00010958,2]
[352488434,1739137630703,-500.0,0.00010958,2]
[352488435,1739137630727,-3887.37,0.00010958,2]
[352488436,1739137630750,-500.0,0.00010958,2]
[352488437,1739137630773,-500.0,0.00010958,2]
[352488438,1739137630795,-596.87,0.00010958,2]
[352488439,1739137630822,-500.0,0.00010958,2]
[352488440,1739137630844,-3596.48,0.00010958,2]
[352488441,1739137630867,-500.0,0.00010958,2]
[352488442,1739137630889,-500.0,0.00010958,2]
[352488443,1739137630911,-1325.79,0.00010958,2]
[352488444,1739137630936,-500.0,0.00010958,2]
[352488445,1739137630960,-1653.36,0.00010958,2]
[352488446,1739137630983,-502.93800768,0.00010958,2]
[352488447,1739137631004,-500.0,0.00010958,2]
[352488448,1739137631029,-500.0,0.00010958,2]
[352488449,1739137631050,-500.0,0.00010958,2]
[352488450,1739137631076,-500.0,0.00010958,2]
[352488451,1739137631098,-2574.6,0.00010958,2]
[352488452,1739137631120,-500.0,0.00010958,2]
[352488453,1739137631143,-1144.56,0.00010958,2]
[352488454,1739137631167,-651.24,0.00010958,2]
[352488455,1739137631189,-500.0,0.00010958,2]
[352488456,1739137631211,-572.57559636,0.00010958,2]
[352488457,1739137631234,-500.0,0.00010958,2]
[352488458,1739137631256,-500.0,0.00010958,2]
[352488459,1739137631278,-500.82852099,0.00010958,2]
[352488460,1739137631300,-365.62195471,0.00010958,2]
[352488461,1739137631325,-2291.27,0.00010958,2]
[352488462,1739137631347,-500.0,0.00010958,2]
[352488463,1739137631370,-768.91,0.00010958,2]
[352488464,1739137631391,-500.0,0.00010958,2]
[352488465,1739137631414,-500.0,0.00010958,2]
[352488466,1739137631436,-579.86,0.00010958,2]
[352488467,1739137631459,-500.0,0.00010958,2]
[352488468,1739137631481,-500.0,0.00010958,2]
[352488469,1739137631505,-1622.99,0.00010958,2]
[352488470,1739137631527,-503.23953762,0.00010958,2]
[352488471,1739137631551,-1342.76,0.00010958,2]
[352488472,1739137631576,-2081.57,0.00010958,2]
[352488473,1739137631599,-500.0,0.00010958,2]
[352488474,1739137631710,-500.0,0.00010958,2]
[352488475,1739137631733,-500.0,0.00010958,2]
[352488476,1739137631755,-500.0,0.00010958,2]
[352488477,1739137631776,-500.0,0.00010958,2]
[352488478,1739137631798,-500.0,0.00010958,2]
[352488479,1739137631824,-500.0,0.00010958,2]
[352488480,1739137631847,-258.67746288,0.00010958,2]
[352488481,1739137631870,-500.0,0.00010958,2]
[352488482,1739137631893,-420.66598814,0.00010958,2]
[352488483,1739137631914,-500.0,0.00010958,2]
[352488484,1739137631937,-689.15,0.00010958,2]
[352488485,1739137631958,-500.0,0.00010958,2]
[352488486,1739137631979,-500.0,0.00010958,2]
[352488487,1739137632000,-500.0,0.00010958,2]
[352488488,1739137632026,-289.18908857,0.00010958,2]
[352488489,1739137632047,-500.0,0.00010958,2]
[352488490,1739137632075,-500.0,0.00010958,2]
[352488491,1739137632099,-500.0,0.00010958,2]
[352488492,1739137632120,-500.0,0.00010958,2]
[352488493,1739137632141,-528.07,0.00010958,2]
[352488494,1739137632164,-500.0,0.00010958,2]
[352488495,1739137632187,-500.0,0.00010958,2]
[352488496,1739137632207,-500.0,0.00010958,2]
[352488497,1739137632230,-500.0,0.00010958,2]
[352488498,1739137632252,-1316.1,0.00010958,2]
[352488499,1739137632275,-533.35,0.00010958,2]
[352488500,1739137632296,-500.0,0.00010958,2]
[352488501,1739137632320,-324.17902638,0.00010958,2]
[352488502,1739137632829,-175.82097362,0.00010958,2]
[352488503,1739137632851,-500.0,0.00010958,2]
[352488504,1739137632872,-500.0,0.00010958,2]
[352488505,1739137632893,-500.0,0.00010958,2]
[352488506,1739137632915,-500.0,0.00010958,2]
[352488507,1739137632937,-500.0,0.00010958,2]
[352488508,1739137632959,-1927.7,0.00010958,2]
[352488509,1739137632981,-500.0,0.00010958,2]
[352488510,1739137633004,-7284.82,0.00010958,2]
[352488511,1739137633026,-500.0,0.00010958,2]
[352488512,1739137633145,-500.0,0.00010958,2]
[352488513,1739137633168,-500.0,0.00010958,2]
[352488514,1739137633191,-500.0,0.00010958,2]
[352488515,1739137633213,-500.0,0.00010958,2]
[352488516,1739137633236,-500.0,0.00010958,2]
[352488517,1739137633258,-500.0,0.00010958,2]
[352488518,1739137633280,-500.0,0.00010958,2]
[352488519,1739137633301,-847.12,0.00010958,2]
[352488520,1739137633327,-500.0,0.00010958,2]
[352488521,1739137633350,-500.0,0.00010958,2]
[352488522,1739137633373,-500.0,0.00010958,2]
[352488523,1739137633395,-151.0,0.00010959,2]
[352488524,1739137633417,-151.0,0.00010959,2]
[352488525,1739137633441,-151.0,0.00010959,2]
[352488526,1739137633464,-151.0,0.00010959,2]
[352488527,1739137633486,-778.1,0.00010959,2]
[352488528,1739137633509,-151.0,0.00010959,2]
[352488529,1739137633532,-151.0,0.00010959,2]
[352488530,1739137633554,-151.0,0.00010959,2]
[352488531,1739137633577,-151.0,0.00010959,2]
[352488532,1739137633599,-151.0,0.00010959,2]
[352488533,1739137633620,-764.16198,0.00010959,2]
[352488534,1739137633642,-764.16198,0.00010959,2]
[352488535,1739137633665,-190.405816,0.00010959,2]
[352488536,1739137633687,-267.376416,0.00010959,2]
[352488537,1739137633709,-267.376416,0.00010959,2]
[352488538,1739137633731,-151.0,0.00010959,2]
[352488539,1739137633753,-2400.0,0.00010983,2]
[352488540,1739137633775,-819.3136086,0.00010984,2]
[352488541,1739137633796,-482.4067224,0.00010995,2]
[352488542,1739137633818,-19073.93127699,0.00011,2]
[352488543,1739137633840,-151.0,0.00011,2]
[352488544,1739137633863,-151.0,0.00011,2]
[352488545,1739137633887,-151.0,0.00011,2]
[352488546,1739137633908,-151.0,0.00011,2]
[352488547,1739137633931,-151.0,0.00011,2]
[352488548,1739137633952,-151.0,0.00011,2]
[352488549,1739137633974,-151.0,0.00011,2]
[352488550,1739137633995,-151.0,0.00011,2]
[352488551,1739137634018,-151.0,0.00011,2]
[352488552,1739137634041,-151.0,0.00011,2]
[352488553,1739137634063,-151.0,0.00011,2]
[352488554,1739137634088,-151.0,0.00011,2]
[352488555,1739137634111,-151.0,0.00011,2]
[352488556,1739137634134,-151.0,0.00011,2]
[352488557,1739137634156,-151.0,0.00011,2]
[352488558,1739137634179,-781.77992,0.00011,2]
[352488559,1739137634202,-781.77992,0.00011,2]
[352488560,1739137634224,-795.917541,0.00011,2]
[352488561,1739137634246,-795.917541,0.00011,2]
[352488562,1739137634267,-249.709944,0.00011,2]
[352488563,1739137634290,-249.709944,0.00011,2]
[352488564,1739137634311,-151.0,0.00011,2]
[352488565,1739137634339,-231.325325,0.00011,2]
[352488566,1739137634360,-231.325325,0.00011,2]
[352488567,1739137634383,-155.500525,0.00011061,2]
[352488568,1739137634405,-151.0,0.00011088,2]
[352488569,1739137634429,-500.0,0.00011094,2]
[352488570,1739137634453,-472.30810125,0.00011094,2]
[352488571,1739137634477,-500.0,0.00011094,2]
[352488572,1739137634499,-377.0,0.00011094,2]
[352488573,1739137634522,-500.0,0.00011094,2]
[352488574,1739137634544,-499.25576571,0.00011094,2]
[352488575,1739137634572,-20058.11530143,0.00011095,5]
[352488576,1739137634872,-89454.42279,0.00011095,5]
[352488577,1739137634902,-89236.7304344,0.00011095,5]
[352488578,1739137634923,-71917.35163624,0.00011095,5]
[352488579,1739137634944,-245.672151,0.00011095,2]
[352488580,1739137634966,-501.03917124,0.00011095,2]
[352488581,1739137634988,-500.0,0.00011095,2]
[352488582,1739137635010,-500.0,0.00011095,2]
[352488583,1739137635036,-500.0,0.00011095,2]
[352488584,1739137635058,-500.0,0.00011095,2]
[352488585,1739137635083,-500.0,0.00011095,2]
[352488586,1739137635106,-500.0,0.00011095,2]
[352488587,1739137635127,-500.0,0.00011095,2]
[352488588,1739137635149,-417.50316715,0.00011095,2]
[352488589,1739137635171,-500.0,0.00011095,2]
[352488590,1739137635192,-189.11827227,0.00011095,2]
[352488591,1739137635214,-500.0,0.00011095,2]
[352488592,1739137635237,-500.0,0.00011095,2]
[352488593,1739137635258,-500.0,0.00011095,2]
[352488594,1739137635280,-500.0,0.00011095,2]
[352488595,1739137635303,-500.0,0.00011095,2]
[352488596,1739137635331,-151.0,0.00011095,2]